Workbook

Sheet Disclaimer
B2: Single Scheme Estimator Tool - Disclaimer

Sheet Input
B1: SINGLE PUBLIC SERVICE PENSION SCHEME (THE "SINGLE SCHEME") INPUTS
C4: This Tool is designed to give a broad indication of the retirement benefits of members of the Single Scheme at normal retirement age. The outputs from the Estimator Tool are not a guarantee of the retirement benefits payable at your normal retirement age. For a broad estimate of your projected Single Scheme benefits, please provide the following information:
C7: Membership Type
C8: Select | D8: Standard | E8: =IF(D8="","Enter Member Type Here","") -> 
C11: Retirement Age
C12: Retirement Age
C15: Full-Time Gross Annual Pensionable Pay (€)
C16: € | D16: 100000 | E16: =IF(E20="","","Enter Full-Time Annual Pensionable Pay here") -> 
C17: Include all of your approved pensionable allowances
C19: % Work Pattern or Full Time Equivalent (FTE)
C20: % | D20: 1 | E20: =IF(D20<1,"If your work pattern is less than 100%, make sure you enter the equivalent Full Time Pensionable Pay you would receive if you worked a full time pattern in the field Full Time Gross Annual Pensionable Pay above","") -> 
C21: Enter your % work pattern, to a maximum of 100%
C23: Year of Birth
C24: Year | D24: 1990
C27: Year of Entry to the Single Scheme
C28: Year | D28: 2024 | E28: In order to give as complete an estimate as possible you should select the year when you first entered pensionable, Single Scheme employment.
C31: Work Pattern and Full Time Pensionable Pay in previous years
C32: Year | D32: Annual Work Pattern (%) | E32: Full-Time Gross Annual Pensionable Pay(€)
C33: 2013
C34: 2014
C35: 2015
C36: 2016
C37: 2017
C38: 2018
C39: 2019
C40: 2020
C41: 2021
C42: 2022
C43: 2023
C49: 2013 | D49: 1 | E49: An Garda Síochána - Garda / Sergeant / Inspector / Superintendent - Retirement Age 55 | F49: =IF($D$8="Retained Firefighter","",50) -> 50
C50: 2014 | D50: 0.99 | E50: Irish Prison Service - Prison Officer grades - Retirement Age 55 | F50: =IF($D$8="Retained Firefighter","",F49+1) -> 51 | G50: =YEAR(NOW()) - 3 -> 2021
C51: 2015 | D51: 0.98 | E51: Local Authority Fire Service - Career Firefighter - Retirement Age 55 | F51: =IF($D$8="Retained Firefighter","",F50+1) -> 52 | G51: =YEAR(NOW()) - 2 -> 2022
C52: 2016 | D52: 0.97 | E52: Permanent Defence Forces - Private / Corporal / Sergeant / Second Lieutenant / Lieutenant - Retirement Age 50 | F52: =IF($D$8="Retained Firefighter","",F51+1) -> 53 | G52: =YEAR(NOW()) - 1 -> 2023
C53: 2017 | D53: 0.96 | E53: Permanent Defence Forces - CQMS / Company Sergeant / QMS / Sergeant Major - Retirement Age 56 | F53: =IF($D$8="Retained Firefighter","",F52+1) -> 54 | G53: =YEAR(NOW()) -> 2024
C54: 2018 | D54: 0.95 | F54: 55 | G54: =YEAR(NOW()) +1 -> 2025 | H54: 55
C55: 2019 | D55: 0.94 | F55: 56 | G55: =YEAR(NOW())+2 -> 2026 | H55: 56
C56: 2020 | D56: 0.93 | F56: 57 | G56: =YEAR(NOW())+3 -> 2027 | H56: 57
C57: 2021 | D57: 0.92 | E57: Standard | F57: 58 | G57: =YEAR(NOW()) +4 -> 2028 | H57: 58
C58: 2022 | D58: 0.91 | E58: Retained Firefighter | F58: =IF($D$8="Retained Firefighter","",F57+1) -> 59 | G58: =YEAR(NOW())+5 -> 2029
C59: 2023 | D59: 0.9 | E59: Judge | F59: =IF($D$8="Retained Firefighter","",F58+1) -> 60 | G59: =YEAR(NOW())+6 -> 2030
C60: 2024 | D60: 0.89 | E60: Uniform | F60: 61 | G60: =YEAR(NOW()) +7 -> 2031
C61: 2025 | D61: 0.88 | F61: 62
C62: 2026 | D62: 0.87 | E62: President | F62: 63
C63: 2027 | D63: 0.86 | E63: Designated Office Holder | F63: 64
C64: 2028 | D64: 0.85 | E64: Comptroller and Auditor General | F64: 65
C65: 2029 | D65: 0.84 | F65: 66
D66: 0.83 | F66: 67
D67: 0.82 | F67: 68
D68: 0.81 | F68: 69
D69: 0.8 | F69: 70
D70: 0.79 | F70: 71
D71: 0.78 | F71: 72
D72: 0.77 | F72: 73
D73: 0.76 | F73: 74
D74: 0.75 | F74: 75
D75: 0.74 | F75: 76
D76: 0.73 | F76: 77
D77: 0.72 | F77: 78
D78: 0.71 | F78: 79
D79: 0.7 | F79: 80
D80: 0.69 | F80: 81
D81: 0.68 | F81: 82
D82: 0.67 | F82: 83
D83: 0.66 | F83: 84
D84: 0.65 | F84: 85
D85: 0.64 | F85: 86
D86: 0.63 | F86: 87
D87: 0.62 | F87: 88
D88: 0.61 | F88: 89
D89: 0.6 | F89: 90
D90: 0.59 | F90: 91
D91: 0.58 | F91: 92
D92: 0.57 | F92: 93
D93: 0.56 | F93: 94
D94: 0.55 | F94: 95
D95: 0.54 | F95: 96
D96: 0.53 | F96: 97
D97: 0.52 | F97: 98
D98: 0.51 | F98: 99
D99: 0.5 | F99: 100
D100: 0.49 | F100: 101
D101: 0.48 | F101: 102
D102: 0.47 | F102: 103
D103: 0.46 | F103: 104
D104: 0.45 | F104: 105
D105: 0.44 | F105: 106
D106: 0.43 | F106: 107
D107: 0.42 | F107: 108
D108: 0.41 | F108: 109
D109: 0.4 | F109: 110
D110: 0.39 | F110: 111
D111: 0.38
D112: 0.37
D113: 0.36
D114: 0.35
D115: 0.34
D116: 0.33
D117: 0.32
D118: 0.31
D119: 0.3
D120: 0.29
D121: 0.28
D122: 0.27
D123: 0.26
D124: 0.25
D125: 0.24
D126: 0.23
D127: 0.22
D128: 0.21
D129: 0.2
D130: 0.19
D131: 0.18
D132: 0.17
D133: 0.16
D134: 0.15
D135: 0.14
D136: 0.13
D137: 0.12
D138: 0.11
D139: 0.1
D140: 0.09
D141: 0.08
D142: 0.07
D143: 0.06
D144: 0.05
D145: 0.04
D146: 0.03
D147: 0.02
D148: 0.01
D149: -9.992007222e-16

Sheet Assumptions
B2: ASSUMPTIONS

Sheet Output
B1: =Input!D8 & " SINGLE SCHEME ESTIMATOR TOOL - RESULTS" -> Standard SINGLE SCHEME ESTIMATOR TOOL - RESULTS
C2: See below an estimate of your projected Single Scheme benefits, in present day money terms, based on information you have provided and assumptions listed.
C6: Contributions This Year
C7: Scheme Contributions | F7: Additional Superannuation Contribution (ASC)
C8: € | D8: =Calculation!H45+Calculation!I45 -> 5487.13402 | F8: € | G8: =Calculation!J45 -> 2249.15
C9: ="Based on your inputs, you are projected to pay €"&TEXT(ROUND(D8,0),"##,###")& " in employee contributions and €"&TEXT(ROUND(G8,0),"##,###")&" in Additional Superannuation Contributions over the next 12 months." -> Based on your inputs, you are projected to pay €5,487 in employee contributions and €2,249 in Additional Superannuation Contributions over the next 12 months.
C11: Retirement Benefits Built Up This Year
C12: ="Your normal retirement age is: "&Calculation!AA5 -> Your normal retirement age is: 66
C14: Retirement Pension Benefit | F14: Retirement Lump Sum Benefit
C15: € | D15: =IF(Input!D28=Calculation!B43,Calculation!O43*2,Calculation!O43) -> 887.4229182 | E15: p.a. | F15: € | G15: =IF(Input!D28=Calculation!B43,Calculation!M43*2,Calculation!M43) -> 3750
C16: ="On the basis of your inputs, you are expected to build up €"&TEXT(ROUND($D$15,2),"##,###")&" towards your annual pension entitlement and €"&TEXT(ROUND($G$15,2),"##,###")&" towards your retirement lump sum payment over the next 12 months." -> On the basis of your inputs, you are expected to build up €887 towards your annual pension entitlement and €3,750 towards your retirement lump sum payment over the next 12 months.
C17: ="The benefits built-up above will be payable from your normal retirement age, i.e. age "&Calculation!AA5&". Your pension and lump sum benefits will be uprated in line with changes in the Consumer Price Index between the year of building up these benefits and the year of your retirement." -> The benefits built-up above will be payable from your normal retirement age, i.e. age 66. Your pension and lump sum benefits will be uprated in line with changes in the Consumer Price Index between the year of building up these benefits and the year of your retirement.
C19: Estimated Benefits At Retirement
C20: Please refer to all assumptions for further detail on how these estimates have been derived.
C22: Normal Retirement Year | F22: Year | G22: =Calculation!AA7 -> 2056
C24: Single Scheme Retirement Lump Sum | F24: € | G24: =Calculation!AA15 -> 123137.3798
C26: Single Scheme Annual Retirement Pension | F26: € | G26: =Calculation!AA14 -> 29201.80927 | H26: p.a.
C28: Annual Contributory State Pension | F28: € | G28: =Calculation!G14 -> 14469.514 | H28: p.a.
C29: You are assumed to be eligible to receive the full State Pension (Contributory) from your state pension eligibility age. Your Single Scheme Normal Retirement Age and the State Pension (Contributory) eligibility age are not the same if you are a Uniformed member or a Retained Firefighter. However for all other membership types, the eligibility age for the State Pension (Contributory) and the minimum Single Scheme normal retirement age are the same.
C30: Today's Date | G30: =TODAY() -> 2024-06-20
C32: All figures shown above are in present day money terms. This means that your estimated benefits are shown in the equivalent of “today’s money.”
B36: Reminder - Inputs
C37: These are the values you entered on the "Inputs" page. If you need to amend the values, please use the "Back to Inputs" button
C39: =Input!D8 -> Standard | F39: =Input!D8 -> Standard
C40: Full-Time Gross Annual Pensionable Pay (€) | G40: =Input!D16 -> 100000
C41: % Work Pattern or Full Time Equivalent (FTE) | G41: =Input!D20 -> 1
C42: Year of Birth | G42: =Input!D24 -> 1990
C43: Year of Entry to the Single Scheme | G43: =Input!D28 -> 2024
C45: Where relevant, Work Pattern and Full Time Pensionable Pay in previous years
D46: Year | E46: Annual Work Pattern (%) | F46: Full-Time Gross Annual Pensionable Pay (€)
D47: 2013 | E47: =Input!D33 -> 0 | F47: =Input!E33 -> 0
D48: 2014 | E48: =Input!D34 -> 0 | F48: =Input!E34 -> 0
D49: 2015 | E49: =Input!D35 -> 0 | F49: =Input!E35 -> 0
D50: 2016 | E50: =Input!D36 -> 0 | F50: =Input!E36 -> 0
D51: 2017 | E51: =Input!D37 -> 0 | F51: =Input!E37 -> 0
D52: 2018 | E52: =Input!D38 -> 0 | F52: =Input!E38 -> 0
D53: 2019 | E53: =Input!D39 -> 0 | F53: =Input!E39 -> 0
D54: 2020 | E54: =Input!D40 -> 0 | F54: =Input!E40 -> 0
D55: 2021 | E55: =Input!D41 -> 0 | F55: =Input!E41 -> 0
D56: 2022 | E56: =Input!D42 -> 0 | F56: =Input!E42 -> 0

Sheet Calculation (hidden)
B2: Single Scheme | AH2: IGNORE - Designated and Comptroller Grades
B3: Parameters | I3: 2020 Onwards | M3: CPI rates - SS referable amounts | P3: Year | Q3: % of Year Worked | R3: Reference Date | T3: CSP Cut-Off Dates | Z3: CALCULATIONS | AC3: CSP Rates | AH3: Year End v Year Start | AI3: =36 + IFERROR(Input!#REF!-2013, 0) -> 36
B4: Accrual rates | I4: Bands | K4: ASC | L4: Add CPI Years as is necessary | M4: 2013 | N4: N/A | O4: Add Years as is necessary - make sure formula in column Q is | P4: 2013 | Q4: =IFERROR(IF(Input!$D$28=P4,0.5,IF(Input!$D$28>Calculation!P4,0,1)),"") -> 0 | R4: 2013-12-31 | T4: 2017 | U4: 2017-01-01 | V4: 2017-03-09 | W4: 2017-12-31 | Z4: Service (Years) | AC4: Yr | AD4: Start | AE4: End | AF4: CSP | AH4: This Cohort
B5: Lump sum rate: | G5: 0.0375 | I5: <=€34500 | J5: 34500 | K5: 0 | M5: 2014 | N5: 0 | P5: 2014 | Q5: =IFERROR(IF(Input!$D$28=P5,0.5,IF(Input!$D$28>Calculation!P5,0,1)),"") -> 0 | R5: 2014-12-31 | T5: 2018 | U5: 2018-01-01 | V5: 2018-03-25 | W5: 2018-12-31 | Z5: Normal Pension Age: | AA5: =IF(Input!$D$8="Uniform",Input!$D$12,IF(Input!$D$8="Retained Firefighter",55,66)) -> 66 | AC5: 2013 | AF5: 230.3 | AH5: OFFSET
B6: Pension rate: | G6: 0.0125 | I6: >34500 - <=€60000 | J6: 60000 | K6: 0.0333 | M6: 2015 | N6: 0.001 | P6: 2015 | Q6: =IFERROR(IF(Input!$D$28=P6,0.5,IF(Input!$D$28>Calculation!P6,0,1)),"") -> 0 | R6: 2015-12-31 | T6: 2019 | U6: 2019-01-01 | V6: 2019-03-24 | W6: 2019-12-31 | Z6: Projected service from current date forward (plus one year): | AA6: =AA5-(YEAR(NOW())-Input!D24)+1 -> 33 | AC6: 2014 | AF6: 230.3
B7: Low-pay rate: | G7: 0.0058 | I7: >€60,000 | K7: 0.035 | M7: 2016 | N7: 0 | P7: 2016 | Q7: =IFERROR(IF(Input!$D$28=P7,0.5,IF(Input!$D$28>Calculation!P7,0,1)),"") -> 0 | R7: 2016-12-31 | T7: 2020 | U7: 2020-01-01 | W7: 2020-12-31 | Z7: Year of Retirement | AA7: =Input!D24+$AA$5 -> 2056 | AC7: 2015 | AF7: 230.3
B8: PR | G8: 0.03 | M8: 2017 | N8: 0.004 | P8: 2017 | Q8: =IFERROR(IF(Input!$D$28=P8,0.5,IF(Input!$D$28>Calculation!P8,0,1)),"") -> 0 | R8: 2017-12-31 | T8: 2021 | U8: 2021-01-01 | W8: 2021-12-31 | AC8: 2016 | AF8: 233.3
B9: NPR | G9: 0.035 | M9: 2018 | N9: 0.007 | P9: 2018 | Q9: =IFERROR(IF(Input!$D$28=P9,0.5,IF(Input!$D$28>Calculation!P9,0,1)),"") -> 0 | R9: 2018-12-31 | T9: 2022 | U9: 2022-01-01 | V9: 2022-01-07 | W9: 2022-12-31 | Z9: Benefits | AC9: 2017 | AD9: 2017-01-01 | AE9: 2017-03-08 | AF9: 233.3
B10: State Pension (€) | M10: 2019 | N10: 0.013 | P10: 2019 | Q10: =IFERROR(IF(Input!$D$28=P10,0.5,IF(Input!$D$28>Calculation!P10,0,1)),"") -> 0 | R10: 2019-12-31 | T10: 2023 | U10: 2023-01-01 | V10: 2023-01-06 | W10: 2023-12-31 | Z10: Projected Pension | AA10: =SUM(P32:P90) -> 64353.68978
B11: Weekly rate: | G11: =IF(TODAY()<AD19,AF18,AF19) -> 277.3 | M11: 2020 | N11: 0 | P11: 2020 | Q11: =IFERROR(IF(Input!$D$28=P11,0.5,IF(Input!$D$28>Calculation!P11,0,1)),"") -> 0 | R11: 2020-12-31 | AC11: 2017 | AD11: 2017-03-09 | AE11: 2017-12-31 | AF11: 238.3
M12: 2021 | N12: 0.055 | P12: 2021 | Q12: =IFERROR(IF(Input!$D$28=P12,0.5,IF(Input!$D$28>Calculation!P12,0,1)),"") -> 0 | R12: 2021-12-31 | Z12: Projected Lump Sum | AA12: =SUM(N32:N90) -> 271364.8551 | AC12: 2018 | AD12: 2018-01-01 | AE12: 2018-03-25 | AF12: 238.3
M13: 2022 | N13: 0.082 | P13: 2022 | Q13: =IFERROR(IF(Input!$D$28=P13,0.5,IF(Input!$D$28>Calculation!P13,0,1)),"") -> 0 | R13: 2022-12-31 | AC13: 2018 | AD13: 2018-03-26 | AE13: 2019-03-24 | AF13: 243.3
B14: Annual rate: | G14: =G11*52.18 -> 14469.514 | M14: 2023 | N14: 0.046 | P14: 2023 | Q14: =IFERROR(IF(Input!$D$28=P14,0.5,IF(Input!$D$28>Calculation!P14,0,1)),"") -> 0 | R14: =TODAY() -> 2024-06-20 | Z14: PV Pension | AA14: =IF(OR(AD21="Judge",AD21="TD/Senator"),MIN($AA$10*(1+$G$21)^-($AA$6-1),$D$40*0.5),$AA$10*(1+$G$21)^-($AA$6-1)) -> 29201.80927 | AC14: 2019 | AD14: 2019-03-25 | AF14: 248.3
B15: 3.74 | C15: * annual | G15: =G14*B15 -> 54115.98236 | Z15: PV Lump Sum | AA15: =IF(OR(AD21="Judge",AD21="TD/Senator"), MIN($AA$12*(1+$G$21)^-($AA$6-1),1.5*$D$40),$AA$12*(1+$G$21)^-($AA$6-1)) -> 123137.3798 | AC15: 2020 | AF15: 248.3
B16: Annual rate of increase (nominal) | AC16: 2021 | AE16: 2022-01-06 | AF16: 248.3
B17: Salary (€) | Z17: Contributions | AC17: 2022 | AD17: 2022-01-07 | AF17: 253.3
B18: Annual rate of increase (nominal) | G18: =G19+G20 -> 0.035 | Z18: PV EE CONT | AA18: =SUM(K45:K90) -> 251381.9281 | AC18: 2023 | AD18: 2023-01-06 | AF18: 265.3
B19: Real and Promotional pay growth | G19: 0.02 | Z19: PV EE CONT+ASC | AA19: =SUM(L45:L90) -> 378962.8777 | AC19: 2024 | AD19: 2024-01-05 | AF19: 277.3
B20: Inflation | G20: 0.015
B21: Deflation Factor | G21: 0.025 | Z21: Contributions | AC21: Membership Type | AD21: =Input!D8 -> Standard
Z22: PV EE CONT | AA22: =SUM(K45:K49) -> 28346.57217
Z23: PV EE CONT+ASC | AA23: =SUM(L45:L49) -> 40398.55229
B26: YEAR | D26: PROJECTED SALARY | H26: EE CONT | J26: ASC | K26: PV EE CONT | L26: PV EE CONT + ASC | M26: Lump Sum | O26: Scheme Pension
C27: % of Year Worked | E27: Offset | F27: 3.74*Offset | G27: NPR | H27: PR | I27: NPR | M27: Accrued per year | N27: Uprated with CPI | O27: Accrued per year | P27: Uprated with CPI
H29: =$G$8 -> 0.03 | I29: =$G$9 -> 0.035 | J29: =SUM(J45:J90) -> 171086.4051
B32: 2013 | C32: =IFERROR(IF(Input!$D$28=B32,0.5,IF(Input!$D$28>Calculation!B32,0,1)),"") -> 0 | D32: =IF(Input!$D$28>Calculation!B32,0,Input!E33) -> 0 | E32: =230.3*52.18*2 -> 24034.108 | F32: =E32/2*$B$15 -> 44943.78196 | G32: =IFERROR(MAX(D32-E32,0),"") -> 0 | M32: =IFERROR($G$5*(D32*MAX(Input!D33,0)*C32),"") -> 0 | N32: =IFERROR(M32*(1+$N$5)*(1+$N$6)*(1+$N$7)*(1+$N$8)*(1+N$9)*(1+N$10)*(1+$N$11)*(1+$N$12)*(1+$N$13)*(1+$N$14)*(1+$G$20)^($AA$7-2023-1),"") -> 0 | O32: =IFERROR(IF(D32<F32,D32*$G$7,((D32-F32)*$G$6)+($F32*$G$7))*MAX(Input!D33,0)*C32, "") -> 0 | P32: =IFERROR(O32*(1+$N$5)*(1+$N$6)*(1+$N$7)*(1+$N$8)*(1+N$9)*(1+N$10)*(1+N$11)*(1+$N$12)*(1+$N$13)*(1+$N$14)*(1+$G$20)^($AA$7-2023-1),"") -> 0
B33: 2014 | C33: =IFERROR(IF(Input!$D$28=B33,0.5,IF(Input!$D$28>Calculation!B33,0,1)),"") -> 0 | D33: =IF(Input!$D$28>Calculation!B33,0,Input!E34) -> 0 | E33: =230.3*52.18*2 -> 24034.108 | F33: 44943.78196 | G33: 0 | M33: =IFERROR($G$5*(D33*MAX(Input!D34,0)*C33),"") -> 0 | N33: =IFERROR(M33*(1+$N$6)*(1+$N$7)*(1+$N$8)*(1+N$9)*(1+N$10)*(1+N$11)*(1+$N$12)*(1+$N$13)*(1+$N$14)*(1+$G$20)^($AA$7-2023-1),"") -> 0 | O33: =IFERROR(IF(D33<F33,D33*$G$7,((D33-F33)*$G$6)+($F33*$G$7))*MAX(Input!D34,0)*C33, "") -> 0 | P33: =IFERROR(O33*(1+$N$6)*(1+$N$7)*(1+$N$8)*(1+N$9)*(1+N$10)*(1+N$11)*(1+$N$12)*(1+$N$13)*(1+$N$14)*(1+$G$20)^($AA$7-2023-1),"") -> 0
B34: 2015 | C34: =IFERROR(IF(Input!$D$28=B34,0.5,IF(Input!$D$28>Calculation!B34,0,1)),"") -> 0 | D34: =IF(Input!$D$28>Calculation!B34,0,Input!E35) -> 0 | E34: =230.3*52.18*2 -> 24034.108 | F34: 44943.78196 | G34: 0 | M34: =IFERROR($G$5*(D34*MAX(Input!D35,0)*C34),"") -> 0 | N34: =IFERROR(M34*(1+$N$7)*(1+$N$8)*(1+N$9)*(1+N$10)*(1+N$11)*(1+$N$12)*(1+$N$13)*(1+$N$14)*(1+$G$20)^($AA$7-2023-1),"") -> 0 | O34: =IFERROR(IF(D34<F34,D34*$G$7,((D34-F34)*$G$6)+($F34*$G$7))*MAX(Input!D35,0)*C34, "") -> 0 | P34: =IFERROR(O34*(1+$N$7)*(1+$N$8)*(1+N$9)*(1+N$10)*(1+N$11)*(1+$N$12)*(1+$N$13)*(1+$N$14)*(1+$G$20)^($AA$7-2023-1),"") -> 0
B35: 2016 | C35: =IFERROR(IF(Input!$D$28=B35,0.5,IF(Input!$D$28>Calculation!B35,0,1)),"") -> 0 | D35: =IF(Input!$D$28>Calculation!B35,0,Input!E36) -> 0 | E35: =233.3*52.18*2 -> 24347.188 | F35: 45529.24156 | G35: 0 | M35: =IFERROR($G$5*(D35*MAX(Input!D36,0)*C35),"") -> 0 | N35: =IFERROR(M35*(1+$N$8)*(1+N$9)*(1+N$10)*(1+N$11)*(1+$N$12)*(1+$N$13)*(1+$N$14)*(1+$G$20)^($AA$7-2023-1),"") -> 0 | O35: =IFERROR(IF(D35<F35,D35*$G$7,((D35-F35)*$G$6)+($F35*$G$7))*MAX(Input!D36,0)*C35, "") -> 0 | P35: =IFERROR(O35*(1+$N$8)*(1+N$9)*(1+N$10)*(1+N$11)*(1+$N$12)*(1+$N$13)*(1+$N$14)*(1+$G$20)^($AA$7-2023-1),"") -> 0
B36: 2017 | C36: =IFERROR(IF(Input!$D$28=B36,0.5,IF(Input!$D$28>Calculation!B36,0,1)),"") -> 0 | D36: =IF(Input!$D$28>Calculation!B36,0,Input!E37) -> 0 | E36: =(YEARFRAC(U4,V4)*233.3+YEARFRAC(V4,W4)*238.3)*52.18*2 -> 24770.42578 | F36: 46320.6962 | G36: 0 | M36: =IFERROR($G$5*(D36*MAX(Input!D37,0)*C36),"") -> 0 | N36: =IFERROR(M36*(1+$N$9)*(1+N$10)*(1+N$11)*(1+$N$12)*(1+$N$13)*(1+$N$14)*(1+$G$20)^($AA$7-2023-1),"") -> 0 | O36: =IFERROR(IF(D36<F36,D36*$G$7,((D36-F36)*$G$6)+($F36*$G$7))*MAX(Input!D37,0)*C36, "") -> 0 | P36: =IFERROR(O36*(1+$N$9)*(1+N$10)*(1+N$11)*(1+$N$12)*(1+$N$13)*(1+$N$14)*(1+$G$20)^($AA$7-2023-1),"") -> 0
B37: 2018 | C37: =IFERROR(IF(Input!$D$28=B37,0.5,IF(Input!$D$28>Calculation!B37,0,1)),"") -> 0 | D37: =IF(Input!$D$28>Calculation!B37,0,Input!E38) -> 0 | E37: =(YEARFRAC(U5,V5)*238.3+YEARFRAC(V5,W5)*243.3)*52.18*2 -> 25269.03467 | F37: 47253.09483 | G37: 0 | M37: =IFERROR($G$5*(D37*MAX(Input!D38,0)*C37),"") -> 0 | N37: =IFERROR(M37*(1+N$10)*(1+N$11)*(1+$N$12)*(1+$N$13)*(1+$N$14)*(1+$G$20)^($AA$7-2023-1),"") -> 0 | O37: =IFERROR(IF(D37<F37,D37*$G$7,((D37-F37)*$G$6)+($F37*$G$7))*MAX(Input!D38,0)*C37, "") -> 0 | P37: =IFERROR(O37*(1+N$10)*(1+N$11)*(1+$N$12)*(1+$N$13)*(1+$N$14)*(1+$G$20)^($AA$7-2023-1),"") -> 0
B38: 2019 | C38: =IFERROR(IF(Input!$D$28=B38,0.5,IF(Input!$D$28>Calculation!B38,0,1)),"") -> 0 | D38: =IF(Input!$D$28>Calculation!B38,0,Input!E39) -> 0 | E38: =(YEARFRAC(U6,V6)*243.3+YEARFRAC(V6,W6)*248.3)*52.18*2 -> 25792.28411 | F38: 48231.57129 | G38: 0 | M38: =IFERROR($G$5*(D38*MAX(Input!D39,0)*C38),"") -> 0 | N38: =IFERROR(M38*(1+N$11)*(1+$N$12)*(1+$N$13)*(1+$N$14)*(1+$G$20)^($AA$7-2023-1),"") -> 0 | O38: =IFERROR(IF(D38<F38,D38*$G$7,((D38-F38)*$G$6)+($F38*$G$7))*MAX(Input!D39,0)*C38, "") -> 0 | P38: =IFERROR(O38*(1+N$11)*(1+$N$12)*(1+$N$13)*(1+$N$14)*(1+$G$20)^($AA$7-2023-1),"") -> 0
B39: 2020 | C39: =IFERROR(IF(Input!$D$28=B39,0.5,IF(Input!$D$28>Calculation!B39,0,1)),"") -> 0 | D39: =IF(Input!$D$28>Calculation!B39,0,Input!E40) -> 0 | E39: =$AF$15*52.18*2 -> 25912.588 | F39: 48456.53956 | G39: 0 | M39: =IFERROR($G$5*(D39*MAX(Input!D40,0)*C39),"") -> 0 | N39: =IFERROR(M39*(1+$N$12)*(1+$N$13)*(1+$N$14)*(1+$G$20)^($AA$7-2023-1),"") -> 0 | O39: =IFERROR(IF(D39<F39,D39*$G$7,((D39-F39)*$G$6)+($F39*$G$7))*MAX(Input!D40,0)*C39, "") -> 0 | P39: =IFERROR(O39*(1+$N$12)*(1+$N$13)*(1+$N$14)*(1+$G$20)^($AA$7-2023-1),"") -> 0
B40: 2021 | C40: =IFERROR(IF(Input!$D$28=B40,0.5,IF(Input!$D$28>Calculation!B40,0,1)),"") -> 0 | D40: =IF(Input!$D$28>Calculation!B40,0,Input!E41) -> 0 | E40: =$AF$16*52.18*2 -> 25912.588 | F40: 48456.53956 | G40: 0 | M40: =IFERROR($G$5*(D40*MAX(Input!D41,0)*C40),"") -> 0 | N40: =IFERROR(M40*(1+$N$13)*(1+$N$14)*(1+$G$20)^($AA$7-2023-1),"") -> 0 | O40: =IFERROR(IF(D40<F40,D40*$G$7,((D40-F40)*$G$6)+($F40*$G$7))*MAX(Input!D41,0)*C40, "") -> 0 | P40: =IFERROR(O40*(1+$N$13)*(1+$N$14)*(1+$G$20)^($AA$7-2023-1),"") -> 0
B41: 2022 | C41: =IFERROR(IF(Input!$D$28=B41,0.5,IF(Input!$D$28>Calculation!B41,0,1)),"") -> 0 | D41: =IF(Input!$D$28>Calculation!B41,0,Input!E42) -> 0 | E41: =(YEARFRAC(U9,V9)*AF16+YEARFRAC(V9,W9)*AF17)*52.18*2 -> 26425.69133 | F41: 49416.04279 | G41: =IFERROR(MAX(D41-E41,0),"") -> 0 | M41: =IFERROR($G$5*(D41*MAX(Input!D42,0)*C41),"") -> 0 | N41: =IFERROR(M41*(1+$N$14)*(1+$G$20)^($AA$7-2023-1),"") -> 0 | O41: =IFERROR(IF(D41<F41,D41*$G$7,((D41-F41)*$G$6)+($F41*$G$7))*MAX(Input!D42,0)*C41, "") -> 0 | P41: =IFERROR(O41*(1+$N$14)*(1+$G$20)^($AA$7-2023-1),"") -> 0
B42: 2023 | C42: =IFERROR(IF(Input!$D$28=B42,0.5,IF(Input!$D$28>Calculation!B42,0,1)),"") -> 0 | D42: =IF(Input!$D$28>Calculation!B42,0,Input!E43) -> 0 | E42: =(YEARFRAC(U10,V10)*AF17+YEARFRAC(V10,W10)*AF18)*52.18*2 -> 27669.31467 | F42: 51741.61843 | G42: =IFERROR(MAX(D42-E42,0),"") -> 0 | M42: =IFERROR($G$5*(D42*MAX(Input!D43,0)*C42),"") -> 0 | N42: =IFERROR(M42*(1+$G$20)^($AA$7-2023-1),"") -> 0 | O42: =IFERROR(IF(D42<F42,D42*$G$7,((D42-F42)*$G$6)+($F42*$G$7))*MAX(Input!D43,0)*C42, "") -> 0 | P42: =IFERROR(O42*(1+$G$20)^($AA$7-2023-1),"") -> 0
B43: 2024 | C43: =IFERROR(IF(Input!$D$28=B43,0.5,IF(Input!$D$28>Calculation!B43,0,1)),"") -> 0.5 | D43: =IF(Input!$D$28>Calculation!B43,0,Input!D16) -> 100000 | E43: =$G$11*52.18*2 -> 28939.028 | F43: =E43/2*$B$15 -> 54115.98236 | G43: =IFERROR(MAX(D43-E43,0),"") -> 71060.972 | M43: =IFERROR($G$5*(D43*Input!$D$20*C43),"") -> 1875 | N43: =IFERROR(M43*(1+$G$20)^($AA$7-2024-1),"") -> 2974.737045 | O43: =IFERROR(IF(D43<F43,D43*$G$7,((D43-F43)*$G$6)+($F$43*$G$7))*MAX(Input!$D$20,0)*C43,"") -> 443.7114591 | P43: =IFERROR(O43*(1+$G$20)^($AA$7-2024-1),"") -> 703.9599544
B45: 1 | C45: =IF(B45="","",1) -> 1 | D45: =Input!D16 -> 100000 | E45: =G11*52.18*2 -> 28939.028 | F45: =IF(B45="","",E45/2*$B$15) -> 54115.98236 | G45: =IFERROR(MAX(D45-2*($G$14*((1+$G$19)*(+$G$20))^(B45-1)),0),"") -> 71060.972 | H45: =IFERROR($H$29*D45*Input!$D$20,"") -> 3000 | I45: =IFERROR($I$29*G45*Input!$D$20,"") -> 2487.13402 | J45: =IFERROR(IF(D45*Input!$D$20<=$J$5,$K$5*D45*Input!$D$20,IF(AND(D45*Input!$D$20>$J$5,D45*Input!$D$20<=$J$6),$K$6*(D45*Input!$D$20-$J$5),IF(D45*Input!$D$20>$J$6,$K$6*($J$6*Input!$D$20-$J$5)+$K$7*(D45*Input!$D$20-$J$6)))),"") -> 2249.15 | K45: =IFERROR(SUM(H45:I45)*(1+$G$20)^(-B45+0.5),"") -> 5446.43778 | L45: =IFERROR(SUM(H45:J45)*(1+$G$20)^(-B45+0.5),"") -> 7678.906585 | M45: =IFERROR($G$5*D46*Input!$D$20*C46,"") -> 3882.375 | N45: =IFERROR(M45*(1+$G$20)^($AA$6-B45-2),"") -> 6068.463571 | O45: =IFERROR(IF(B45="","",IF(D46<$G$15*(1+$G$18)^(B46-1),D46*$G$7,((D46-($G$15*(1+$G$18)^(B46-1)))*$G$6)+($G$15*(1+$G$18)^(B46-1)*$G$7)))*Input!$D$20*C46,"") -> 918.8577203 | P45: =IFERROR(O45*(1+$G$20)^($AA$6-B45-2),"") -> 1436.248328
B46: =IF(B45="","",IF($AA$6>=B45+1,B45+1,"")) -> 2 | C46: =IF(B46="","",1) -> 1 | D46: =IF(B46="","",$D$45*(($G$19+1)*($G$20+1))^(B46-1)) -> 103530 | E46: =IF(B46="","",$E$45*(($G$18+1))^(B46-1)) -> 29951.89398 | F46: =IF(B46="","",E46/2*$B$15) -> 56010.04174 | G46: =IFERROR(D46-E46,"") -> 73578.10602 | H46: =IFERROR($H$29*D46*Input!$D$20,"") -> 3105.9 | I46: =IFERROR($I$29*G46*Input!$D$20,"") -> 2575.233711 | J46: =IFERROR(IF(D46*Input!$D$20<=$J$5,$K$5*D46*Input!$D$20,IF(AND(D46*Input!$D$20>$J$5,D46*Input!$D$20<=$J$6),$K$6*(D46*Input!$D$20-$J$5),IF(D46*Input!$D$20>$J$6,$K$6*($J$6*Input!$D$20-$J$5)+$K$7*(D46*Input!$D$20-$J$6)))),"") -> 2372.7 | K46: =IFERROR(SUM(H46:I46)*(1+$G$20)^(-B46+0.5),"") -> 5555.663684 | L46: 7875.96169 | M46: =IFERROR($G$5*D47*Input!$D$20*C47,"") -> 4019.422837 | N46: =IFERROR(M46*(1+$G$20)^($AA$6-B46-2),"") -> 6189.832842 | O46: =IFERROR(IF(B46="","",IF(D47<$G$15*(1+$G$18)^(B47-1),D47*$G$7,((D47-($G$15*(1+$G$18)^(B47-1)))*$G$6)+($G$15*(1+$G$18)^(B47-1)*$G$7)))*Input!$D$20*C47,"") -> 951.405978 | P46: =IFERROR(O46*(1+$G$20)^($AA$6-B46-2),"") -> 1465.146666
B47: =IF(B46="","",IF($AA$6>=B46+1,B46+1,"")) -> 3 | C47: 1 | D47: 107184.609 | E47: 31000.21027 | F47: 57970.3932 | G47: =IFERROR(D47-E47,"") -> 76184.39873 | H47: =IFERROR($H$29*D47*Input!$D$20,"") -> 3215.53827 | I47: =IFERROR($I$29*G47*Input!$D$20,"") -> 2666.453956 | J47: =IFERROR(IF(D47*Input!$D$20<=$J$5,$K$5*D47*Input!$D$20,IF(AND(D47*Input!$D$20>$J$5,D47*Input!$D$20<=$J$6),$K$6*(D47*Input!$D$20-$J$5),IF(D47*Input!$D$20>$J$6,$K$6*($J$6*Input!$D$20-$J$5)+$K$7*(D47*Input!$D$20-$J$6)))),"") -> 2500.611315 | K47: 5667.079962 | L47: 8076.325628 | M47: =IFERROR($G$5*D48*Input!$D$20*C48,"") -> 4161.308464 | N47: =IFERROR(M47*(1+$G$20)^($AA$6-B47-2),"") -> 6313.629499 | O47: =IFERROR(IF(B47="","",IF(D48<$G$15*(1+$G$18)^(B48-1),D48*$G$7,((D48-($G$15*(1+$G$18)^(B48-1)))*$G$6)+($G$15*(1+$G$18)^(B48-1)*$G$7)))*Input!$D$20*C48,"") -> 985.1071296 | P47: 1494.626387
B48: 4 | C48: 1 | D48: 110968.2257 | E48: 32085.21763 | F48: 59999.35697 | G48: 78883.00807 | H48: =IFERROR($H$29*D48*Input!$D$20,"") -> 3329.046771 | I48: =IFERROR($I$29*G48*Input!$D$20,"") -> 2760.905282 | J48: =IFERROR(IF(D48*Input!$D$20<=$J$5,$K$5*D48*Input!$D$20,IF(AND(D48*Input!$D$20>$J$5,D48*Input!$D$20<=$J$6),$K$6*(D48*Input!$D$20-$J$5),IF(D48*Input!$D$20>$J$6,$K$6*($J$6*Input!$D$20-$J$5)+$K$7*(D48*Input!$D$20-$J$6)))),"") -> 2633.037899 | K48: 5780.730536 | L48: 8280.074119 | M48: =IFERROR($G$5*D49*Input!$D$20*C49,"") -> 4308.202652 | N48: 6439.902089 | O48: =IFERROR(IF(B48="","",IF(D49<$G$15*(1+$G$18)^(B49-1),D49*$G$7,((D49-($G$15*(1+$G$18)^(B49-1)))*$G$6)+($G$15*(1+$G$18)^(B49-1)*$G$7)))*Input!$D$20*C49,"") -> 1020.00201 | P48: 1524.699185
B49: 5 | C49: 1 | D49: 114885.4041 | E49: 33208.20025 | F49: 62099.33446 | G49: 81677.20382 | H49: =IFERROR($H$29*D49*Input!$D$20,"") -> 3446.562122 | I49: =IFERROR($I$29*G49*Input!$D$20,"") -> 2858.702134 | J49: =IFERROR(IF(D49*Input!$D$20<=$J$5,$K$5*D49*Input!$D$20,IF(AND(D49*Input!$D$20>$J$5,D49*Input!$D$20<=$J$6),$K$6*(D49*Input!$D$20-$J$5),IF(D49*Input!$D$20>$J$6,$K$6*($J$6*Input!$D$20-$J$5)+$K$7*(D49*Input!$D$20-$J$6)))),"") -> 2770.139142 | K49: 5896.660209 | L49: 8487.284264 | M49: =IFERROR($G$5*D50*Input!$D$20*C50,"") -> 4460.282206 | N49: 6568.700131 | O49: =IFERROR(IF(B49="","",IF(D50<$G$15*(1+$G$18)^(B50-1),D50*$G$7,((D50-($G$15*(1+$G$18)^(B50-1)))*$G$6)+($G$15*(1+$G$18)^(B50-1)*$G$7)))*Input!$D$20*C50,"") -> 1056.132901 | P49: 1555.376992
B50: 6 | C50: 1 | D50: 118940.8588 | E50: 34370.48725 | F50: 64272.81117 | G50: 84570.37157 | H50: =IFERROR($H$29*D50*Input!$D$20,"") -> 3568.225765 | I50: =IFERROR($I$29*G50*Input!$D$20,"") -> 2959.963005 | J50: =IFERROR(IF(D50*Input!$D$20<=$J$5,$K$5*D50*Input!$D$20,IF(AND(D50*Input!$D$20>$J$5,D50*Input!$D$20<=$J$6),$K$6*(D50*Input!$D$20-$J$5),IF(D50*Input!$D$20>$J$6,$K$6*($J$6*Input!$D$20-$J$5)+$K$7*(D50*Input!$D$20-$J$6)))),"") -> 2912.080059 | K50: 6014.914684 | L50: 8698.03457 | M50: =IFERROR($G$5*D51*Input!$D$20*C51,"") -> 4617.730168 | N50: 6700.074134 | O50: =IFERROR(IF(B50="","",IF(D51<$G$15*(1+$G$18)^(B51-1),D51*$G$7,((D51-($G$15*(1+$G$18)^(B51-1)))*$G$6)+($G$15*(1+$G$18)^(B51-1)*$G$7)))*Input!$D$20*C51,"") -> 1093.54358 | P50: 1586.671977
B51: 7 | C51: 1 | D51: 123139.4711 | E51: 35573.45431 | F51: 66522.35956 | G51: 87566.01684 | H51: =IFERROR($H$29*D51*Input!$D$20,"") -> 3694.184134 | I51: =IFERROR($I$29*G51*Input!$D$20,"") -> 3064.810589 | J51: =IFERROR(IF(D51*Input!$D$20<=$J$5,$K$5*D51*Input!$D$20,IF(AND(D51*Input!$D$20>$J$5,D51*Input!$D$20<=$J$6),$K$6*(D51*Input!$D$20-$J$5),IF(D51*Input!$D$20>$J$6,$K$6*($J$6*Input!$D$20-$J$5)+$K$7*(D51*Input!$D$20-$J$6)))),"") -> 3059.03149 | K51: 6135.540579 | L51: 8912.404981 | M51: =IFERROR($G$5*D52*Input!$D$20*C52,"") -> 4780.736043 | N51: 6834.075616 | O51: =IFERROR(IF(B51="","",IF(D52<$G$15*(1+$G$18)^(B52-1),D52*$G$7,((D52-($G$15*(1+$G$18)^(B52-1)))*$G$6)+($G$15*(1+$G$18)^(B52-1)*$G$7)))*Input!$D$20*C52,"") -> 1132.279379 | P51: 1618.596556
B52: 8 | C52: 1 | D52: 127486.2945 | E52: 36818.52521 | F52: 68850.64214 | G52: 90667.76927 | H52: =IFERROR($H$29*D52*Input!$D$20,"") -> 3824.588834 | I52: =IFERROR($I$29*G52*Input!$D$20,"") -> 3173.371924 | J52: =IFERROR(IF(D52*Input!$D$20<=$J$5,$K$5*D52*Input!$D$20,IF(AND(D52*Input!$D$20>$J$5,D52*Input!$D$20<=$J$6),$K$6*(D52*Input!$D$20-$J$5),IF(D52*Input!$D$20>$J$6,$K$6*($J$6*Input!$D$20-$J$5)+$K$7*(D52*Input!$D$20-$J$6)))),"") -> 3211.170307 | K52: 6258.585447 | L52: 9130.476909 | M52: =IFERROR($G$5*D53*Input!$D$20*C53,"") -> 4949.496025 | N52: 6970.757129 | O52: =IFERROR(IF(B52="","",IF(D53<$G$15*(1+$G$18)^(B53-1),D53*$G$7,((D53-($G$15*(1+$G$18)^(B53-1)))*$G$6)+($G$15*(1+$G$18)^(B53-1)*$G$7)))*Input!$D$20*C53,"") -> 1172.38723 | P52: 1651.163392
B53: 9 | C53: 1 | D53: 131986.5607 | E53: 38107.17359 | F53: 71260.41462 | G53: 93879.38708 | H53: =IFERROR($H$29*D53*Input!$D$20,"") -> 3959.59682 | I53: =IFERROR($I$29*G53*Input!$D$20,"") -> 3285.778548 | J53: =IFERROR(IF(D53*Input!$D$20<=$J$5,$K$5*D53*Input!$D$20,IF(AND(D53*Input!$D$20>$J$5,D53*Input!$D$20<=$J$6),$K$6*(D53*Input!$D$20-$J$5),IF(D53*Input!$D$20>$J$6,$K$6*($J$6*Input!$D$20-$J$5)+$K$7*(D53*Input!$D$20-$J$6)))),"") -> 3368.679623 | K53: 6384.097795 | L53: 9352.333265 | M53: =IFERROR($G$5*D54*Input!$D$20*C54,"") -> 5124.213235 | N53: 7110.172271 | O53: =IFERROR(IF(B53="","",IF(D54<$G$15*(1+$G$18)^(B54-1),D54*$G$7,((D54-($G$15*(1+$G$18)^(B54-1)))*$G$6)+($G$15*(1+$G$18)^(B54-1)*$G$7)))*Input!$D$20*C54,"") -> 1213.915733 | P53: 1684.385405
B54: 10 | C54: 1 | D54: 136645.6863 | E54: 39440.92467 | F54: 73754.52913 | G54: 97204.7616 | H54: =IFERROR($H$29*D54*Input!$D$20,"") -> 4099.370588 | I54: =IFERROR($I$29*G54*Input!$D$20,"") -> 3402.166656 | J54: =IFERROR(IF(D54*Input!$D$20<=$J$5,$K$5*D54*Input!$D$20,IF(AND(D54*Input!$D$20>$J$5,D54*Input!$D$20<=$J$6),$K$6*(D54*Input!$D$20-$J$5),IF(D54*Input!$D$20>$J$6,$K$6*($J$6*Input!$D$20-$J$5)+$K$7*(D54*Input!$D$20-$J$6)))),"") -> 3531.749019 | K54: 6512.127102 | L54: 9578.058492 | M54: =IFERROR($G$5*D55*Input!$D$20*C55,"") -> 5305.097962 | N54: 7252.375717 | O54: =IFERROR(IF(B54="","",IF(D55<$G$15*(1+$G$18)^(B55-1),D55*$G$7,((D55-($G$15*(1+$G$18)^(B55-1)))*$G$6)+($G$15*(1+$G$18)^(B55-1)*$G$7)))*Input!$D$20*C55,"") -> 1256.915205 | P54: 1718.275775
B55: 11 | C55: 1 | D55: 141469.279 | E55: 40821.35703 | F55: 76335.93765 | G55: 100647.922 | H55: =IFERROR($H$29*D55*Input!$D$20,"") -> 4244.07837 | I55: =IFERROR($I$29*G55*Input!$D$20,"") -> 3522.677269 | J55: =IFERROR(IF(D55*Input!$D$20<=$J$5,$K$5*D55*Input!$D$20,IF(AND(D55*Input!$D$20>$J$5,D55*Input!$D$20<=$J$6),$K$6*(D55*Input!$D$20-$J$5),IF(D55*Input!$D$20>$J$6,$K$6*($J$6*Input!$D$20-$J$5)+$K$7*(D55*Input!$D$20-$J$6)))),"") -> 3700.574765 | K55: 6642.72384 | L55: 9807.738597 | M55: =IFERROR($G$5*D56*Input!$D$20*C56,"") -> 5492.36792 | N55: 7397.423231 | O55: =IFERROR(IF(B55="","",IF(D56<$G$15*(1+$G$18)^(B56-1),D56*$G$7,((D56-($G$15*(1+$G$18)^(B56-1)))*$G$6)+($G$15*(1+$G$18)^(B56-1)*$G$7)))*Input!$D$20*C56,"") -> 1301.437747 | P55: 1752.847945
B56: 12 | C56: 1 | D56: 146463.1445 | E56: 42250.10453 | F56: 79007.69546 | G56: 104213.04 | H56: =IFERROR($H$29*D56*Input!$D$20,"") -> 4393.894336 | I56: =IFERROR($I$29*G56*Input!$D$20,"") -> 3647.4564 | J56: =IFERROR(IF(D56*Input!$D$20<=$J$5,$K$5*D56*Input!$D$20,IF(AND(D56*Input!$D$20>$J$5,D56*Input!$D$20<=$J$6),$K$6*(D56*Input!$D$20-$J$5),IF(D56*Input!$D$20>$J$6,$K$6*($J$6*Input!$D$20-$J$5)+$K$7*(D56*Input!$D$20-$J$6)))),"") -> 3875.360059 | K56: 6775.939491 | L56: 10041.46118 | M56: =IFERROR($G$5*D57*Input!$D$20*C57,"") -> 5686.248508 | N56: 7545.371696 | O56: =IFERROR(IF(B56="","",IF(D57<$G$15*(1+$G$18)^(B57-1),D57*$G$7,((D57-($G$15*(1+$G$18)^(B57-1)))*$G$6)+($G$15*(1+$G$18)^(B57-1)*$G$7)))*Input!$D$20*C57,"") -> 1347.537305 | P56: 1788.115631
B57: 13 | C57: 1 | D57: 151633.2935 | E57: 43728.85818 | F57: 81772.96481 | G57: 107904.4354 | H57: =IFERROR($H$29*D57*Input!$D$20,"") -> 4548.998806 | I57: =IFERROR($I$29*G57*Input!$D$20,"") -> 3776.655237 | J57: =IFERROR(IF(D57*Input!$D$20<=$J$5,$K$5*D57*Input!$D$20,IF(AND(D57*Input!$D$20>$J$5,D57*Input!$D$20<=$J$6),$K$6*(D57*Input!$D$20-$J$5),IF(D57*Input!$D$20>$J$6,$K$6*($J$6*Input!$D$20-$J$5)+$K$7*(D57*Input!$D$20-$J$6)))),"") -> 4056.315274 | K57: 6911.826572 | L57: 10279.31549 | M57: =IFERROR($G$5*D58*Input!$D$20*C58,"") -> 5886.97308 | N57: 7696.27913 | O57: =IFERROR(IF(B57="","",IF(D58<$G$15*(1+$G$18)^(B58-1),D58*$G$7,((D58-($G$15*(1+$G$18)^(B58-1)))*$G$6)+($G$15*(1+$G$18)^(B58-1)*$G$7)))*Input!$D$20*C58,"") -> 1395.269736 | P57: 1824.092823
B58: 14 | C58: 1 | D58: 156985.9488 | E58: 45259.36822 | F58: 84635.01857 | G58: 111726.5806 | H58: =IFERROR($H$29*D58*Input!$D$20,"") -> 4709.578464 | I58: =IFERROR($I$29*G58*Input!$D$20,"") -> 3910.43032 | J58: =IFERROR(IF(D58*Input!$D$20<=$J$5,$K$5*D58*Input!$D$20,IF(AND(D58*Input!$D$20>$J$5,D58*Input!$D$20<=$J$6),$K$6*(D58*Input!$D$20-$J$5),IF(D58*Input!$D$20>$J$6,$K$6*($J$6*Input!$D$20-$J$5)+$K$7*(D58*Input!$D$20-$J$6)))),"") -> 4243.658208 | K58: 7050.438652 | L58: 10521.39241 | M58: =IFERROR($G$5*D59*Input!$D$20*C59,"") -> 6094.78323 | N58: 7850.204712 | O58: =IFERROR(IF(B58="","",IF(D59<$G$15*(1+$G$18)^(B59-1),D59*$G$7,((D59-($G$15*(1+$G$18)^(B59-1)))*$G$6)+($G$15*(1+$G$18)^(B59-1)*$G$7)))*Input!$D$20*C59,"") -> 1444.692874 | P58: 1860.793793
B59: 15 | C59: 1 | D59: 162527.5528 | E59: 46843.44611 | F59: 87597.24422 | G59: 115684.1067 | H59: =IFERROR($H$29*D59*Input!$D$20,"") -> 4875.826584 | I59: =IFERROR($I$29*G59*Input!$D$20,"") -> 4048.943734 | J59: =IFERROR(IF(D59*Input!$D$20<=$J$5,$K$5*D59*Input!$D$20,IF(AND(D59*Input!$D$20>$J$5,D59*Input!$D$20<=$J$6),$K$6*(D59*Input!$D$20-$J$5),IF(D59*Input!$D$20>$J$6,$K$6*($J$6*Input!$D$20-$J$5)+$K$7*(D59*Input!$D$20-$J$6)))),"") -> 4437.614348 | K59: 7191.830374 | L59: 10767.78455 | M59: =IFERROR($G$5*D60*Input!$D$20*C60,"") -> 6309.929078 | N59: 8007.208806 | O59: =IFERROR(IF(B59="","",IF(D60<$G$15*(1+$G$18)^(B60-1),D60*$G$7,((D60-($G$15*(1+$G$18)^(B60-1)))*$G$6)+($G$15*(1+$G$18)^(B60-1)*$G$7)))*Input!$D$20*C60,"") -> 1495.866603 | P59: 1898.2331
B60: 16 | C60: 1 | D60: 168264.7754 | E60: 48482.96672 | F60: 90663.14777 | G60: 119781.8087 | H60: =IFERROR($H$29*D60*Input!$D$20,"") -> 5047.943262 | I60: =IFERROR($I$29*G60*Input!$D$20,"") -> 4192.363304 | J60: =IFERROR(IF(D60*Input!$D$20<=$J$5,$K$5*D60*Input!$D$20,IF(AND(D60*Input!$D$20>$J$5,D60*Input!$D$20<=$J$6),$K$6*(D60*Input!$D$20-$J$5),IF(D60*Input!$D$20>$J$6,$K$6*($J$6*Input!$D$20-$J$5)+$K$7*(D60*Input!$D$20-$J$6)))),"") -> 4638.417139 | K60: 7336.057475 | L60: 11018.58624 | M60: =IFERROR($G$5*D61*Input!$D$20*C61,"") -> 6532.669574 | N60: 8167.352983 | O60: =IFERROR(IF(B60="","",IF(D61<$G$15*(1+$G$18)^(B61-1),D61*$G$7,((D61-($G$15*(1+$G$18)^(B61-1)))*$G$6)+($G$15*(1+$G$18)^(B61-1)*$G$7)))*Input!$D$20*C61,"") -> 1548.852927 | P60: 1936.425595
B61: 17 | C61: 1 | D61: 174204.522 | E61: 50179.87056 | F61: 93836.35794 | G61: 124024.6514 | H61: =IFERROR($H$29*D61*Input!$D$20,"") -> 5226.135659 | I61: =IFERROR($I$29*G61*Input!$D$20,"") -> 4340.8628 | J61: =IFERROR(IF(D61*Input!$D$20<=$J$5,$K$5*D61*Input!$D$20,IF(AND(D61*Input!$D$20>$J$5,D61*Input!$D$20<=$J$6),$K$6*(D61*Input!$D$20-$J$5),IF(D61*Input!$D$20>$J$6,$K$6*($J$6*Input!$D$20-$J$5)+$K$7*(D61*Input!$D$20-$J$6)))),"") -> 4846.308269 | K61: 7483.176813 | L61: 11273.8936 | M61: =IFERROR($G$5*D62*Input!$D$20*C62,"") -> 6763.27281 | N61: 8330.700042 | O61: =IFERROR(IF(B61="","",IF(D62<$G$15*(1+$G$18)^(B62-1),D62*$G$7,((D62-($G$15*(1+$G$18)^(B62-1)))*$G$6)+($G$15*(1+$G$18)^(B62-1)*$G$7)))*Input!$D$20*C62,"") -> 1603.716046 | P61: 1975.38643
B62: 18 | C62: 1 | D62: 180353.9416 | E62: 51936.16603 | F62: 97120.63047 | G62: 128417.7756 | H62: =IFERROR($H$29*D62*Input!$D$20,"") -> 5410.618248 | I62: =IFERROR($I$29*G62*Input!$D$20,"") -> 4494.622145 | J62: =IFERROR(IF(D62*Input!$D$20<=$J$5,$K$5*D62*Input!$D$20,IF(AND(D62*Input!$D$20>$J$5,D62*Input!$D$20<=$J$6),$K$6*(D62*Input!$D$20-$J$5),IF(D62*Input!$D$20>$J$6,$K$6*($J$6*Input!$D$20-$J$5)+$K$7*(D62*Input!$D$20-$J$6)))),"") -> 5061.537956 | K62: 7633.246384 | L62: 11533.80455 | M62: =IFERROR($G$5*D63*Input!$D$20*C63,"") -> 7002.01634 | N62: 8497.314043 | O62: =IFERROR(IF(B62="","",IF(D63<$G$15*(1+$G$18)^(B63-1),D63*$G$7,((D63-($G$15*(1+$G$18)^(B63-1)))*$G$6)+($G$15*(1+$G$18)^(B63-1)*$G$7)))*Input!$D$20*C63,"") -> 1660.522435 | P62: 2015.131059
B63: 19 | C63: 1 | D63: 186720.4357 | E63: 53753.93184 | F63: 100519.8525 | G63: 132966.5039 | H63: =IFERROR($H$29*D63*Input!$D$20,"") -> 5601.613072 | I63: =IFERROR($I$29*G63*Input!$D$20,"") -> 4653.827637 | J63: =IFERROR(IF(D63*Input!$D$20<=$J$5,$K$5*D63*Input!$D$20,IF(AND(D63*Input!$D$20>$J$5,D63*Input!$D$20<=$J$6),$K$6*(D63*Input!$D$20-$J$5),IF(D63*Input!$D$20>$J$6,$K$6*($J$6*Input!$D$20-$J$5)+$K$7*(D63*Input!$D$20-$J$6)))),"") -> 5284.365251 | K63: 7786.325347 | L63: 11798.41886 | M63: =IFERROR($G$5*D64*Input!$D$20*C64,"") -> 7249.187517 | N63: 8667.260324 | O63: =IFERROR(IF(B63="","",IF(D64<$G$15*(1+$G$18)^(B64-1),D64*$G$7,((D64-($G$15*(1+$G$18)^(B64-1)))*$G$6)+($G$15*(1+$G$18)^(B64-1)*$G$7)))*Input!$D$20*C64,"") -> 1719.340922 | P63: 2055.675249
B64: 20 | C64: 1 | D64: 193311.6671 | E64: 55635.31945 | F64: 104038.0474 | G64: 137676.3477 | H64: =IFERROR($H$29*D64*Input!$D$20,"") -> 5799.350014 | I64: =IFERROR($I$29*G64*Input!$D$20,"") -> 4818.672169 | J64: =IFERROR(IF(D64*Input!$D$20<=$J$5,$K$5*D64*Input!$D$20,IF(AND(D64*Input!$D$20>$J$5,D64*Input!$D$20<=$J$6),$K$6*(D64*Input!$D$20-$J$5),IF(D64*Input!$D$20>$J$6,$K$6*($J$6*Input!$D$20-$J$5)+$K$7*(D64*Input!$D$20-$J$6)))),"") -> 5515.058349 | K64: 7942.474048 | L64: 12067.83817 | M64: =IFERROR($G$5*D65*Input!$D$20*C65,"") -> 7505.083837 | N64: 8840.60553 | O64: =IFERROR(IF(B64="","",IF(D65<$G$15*(1+$G$18)^(B65-1),D65*$G$7,((D65-($G$15*(1+$G$18)^(B65-1)))*$G$6)+($G$15*(1+$G$18)^(B65-1)*$G$7)))*Input!$D$20*C65,"") -> 1780.242773 | P64: 2097.035082
B65: 21 | C65: 1 | D65: 200135.569 | E65: 57582.55563 | F65: 107679.379 | G65: 142553.0133 | H65: =IFERROR($H$29*D65*Input!$D$20,"") -> 6004.067069 | I65: =IFERROR($I$29*G65*Input!$D$20,"") -> 4989.355467 | J65: =IFERROR(IF(D65*Input!$D$20<=$J$5,$K$5*D65*Input!$D$20,IF(AND(D65*Input!$D$20>$J$5,D65*Input!$D$20<=$J$6),$K$6*(D65*Input!$D$20-$J$5),IF(D65*Input!$D$20>$J$6,$K$6*($J$6*Input!$D$20-$J$5)+$K$7*(D65*Input!$D$20-$J$6)))),"") -> 5753.894914 | K65: 8101.754042 | L65: 12342.16609 | M65: =IFERROR($G$5*D66*Input!$D$20*C66,"") -> 7770.013296 | N65: 9017.417641 | O65: =IFERROR(IF(B65="","",IF(D66<$G$15*(1+$G$18)^(B66-1),D66*$G$7,((D66-($G$15*(1+$G$18)^(B66-1)))*$G$6)+($G$15*(1+$G$18)^(B66-1)*$G$7)))*Input!$D$20*C66,"") -> 1843.301778 | P65: 2139.226966
B66: 22 | C66: 1 | D66: 207200.3546 | E66: 59597.94508 | F66: 111448.1573 | G66: 147602.4095 | H66: =IFERROR($H$29*D66*Input!$D$20,"") -> 6216.010637 | I66: =IFERROR($I$29*G66*Input!$D$20,"") -> 5166.084332 | J66: =IFERROR(IF(D66*Input!$D$20<=$J$5,$K$5*D66*Input!$D$20,IF(AND(D66*Input!$D$20>$J$5,D66*Input!$D$20<=$J$6),$K$6*(D66*Input!$D$20-$J$5),IF(D66*Input!$D$20>$J$6,$K$6*($J$6*Input!$D$20-$J$5)+$K$7*(D66*Input!$D$20-$J$6)))),"") -> 6001.16241 | K66: 8264.228118 | L66: 12621.50815 | M66: =IFERROR($G$5*D67*Input!$D$20*C67,"") -> 8044.294765 | N66: 9197.765994 | O66: =IFERROR(IF(B66="","",IF(D67<$G$15*(1+$G$18)^(B67-1),D67*$G$7,((D67-($G$15*(1+$G$18)^(B67-1)))*$G$6)+($G$15*(1+$G$18)^(B67-1)*$G$7)))*Input!$D$20*C67,"") -> 1908.594342 | P66: 2182.267637
B67: 23 | C67: 1 | D67: 214514.5271 | E67: 61683.87316 | F67: 115348.8428 | G67: 152830.6539 | H67: =IFERROR($H$29*D67*Input!$D$20,"") -> 6435.435812 | I67: =IFERROR($I$29*G67*Input!$D$20,"") -> 5349.072887 | J67: =IFERROR(IF(D67*Input!$D$20<=$J$5,$K$5*D67*Input!$D$20,IF(AND(D67*Input!$D$20>$J$5,D67*Input!$D$20<=$J$6),$K$6*(D67*Input!$D$20-$J$5),IF(D67*Input!$D$20>$J$6,$K$6*($J$6*Input!$D$20-$J$5)+$K$7*(D67*Input!$D$20-$J$6)))),"") -> 6257.158448 | K67: 8429.960326 | L67: 12905.97191 | M67: =IFERROR($G$5*D68*Input!$D$20*C68,"") -> 8328.258371 | N67: 9381.721314 | O67: =IFERROR(IF(B67="","",IF(D68<$G$15*(1+$G$18)^(B68-1),D68*$G$7,((D68-($G$15*(1+$G$18)^(B68-1)))*$G$6)+($G$15*(1+$G$18)^(B68-1)*$G$7)))*Input!$D$20*C68,"") -> 1976.199573 | P67: 2226.174169
B68: 24 | C68: 1 | D68: 222086.8899 | E68: 63842.80872 | F68: 119386.0523 | G68: 158244.0812 | H68: =IFERROR($H$29*D68*Input!$D$20,"") -> 6662.606696 | I68: =IFERROR($I$29*G68*Input!$D$20,"") -> 5538.542841 | J68: =IFERROR(IF(D68*Input!$D$20<=$J$5,$K$5*D68*Input!$D$20,IF(AND(D68*Input!$D$20>$J$5,D68*Input!$D$20<=$J$6),$K$6*(D68*Input!$D$20-$J$5),IF(D68*Input!$D$20>$J$6,$K$6*($J$6*Input!$D$20-$J$5)+$K$7*(D68*Input!$D$20-$J$6)))),"") -> 6522.191146 | K68: 8599.015999 | L68: 13195.66698 | M68: =IFERROR($G$5*D69*Input!$D$20*C69,"") -> 8622.245891 | N68: 9569.35574 | O68: =IFERROR(IF(B68="","",IF(D69<$G$15*(1+$G$18)^(B69-1),D69*$G$7,((D69-($G$15*(1+$G$18)^(B69-1)))*$G$6)+($G$15*(1+$G$18)^(B69-1)*$G$7)))*Input!$D$20*C69,"") -> 2046.199384 | P68: 2270.963977
B69: 25 | C69: 1 | D69: 229926.5571 | E69: 66077.30702 | F69: 123564.5641 | G69: 163849.2501 | H69: =IFERROR($H$29*D69*Input!$D$20,"") -> 6897.796713 | I69: =IFERROR($I$29*G69*Input!$D$20,"") -> 5734.723752 | J69: =IFERROR(IF(D69*Input!$D$20<=$J$5,$K$5*D69*Input!$D$20,IF(AND(D69*Input!$D$20>$J$5,D69*Input!$D$20<=$J$6),$K$6*(D69*Input!$D$20-$J$5),IF(D69*Input!$D$20>$J$6,$K$6*($J$6*Input!$D$20-$J$5)+$K$7*(D69*Input!$D$20-$J$6)))),"") -> 6796.579498 | K69: 8771.46178 | L69: 13490.70506 | M69: =IFERROR($G$5*D70*Input!$D$20*C70,"") -> 8926.611171 | N69: 9760.742855 | O69: =IFERROR(IF(B69="","",IF(D70<$G$15*(1+$G$18)^(B70-1),D70*$G$7,((D70-($G$15*(1+$G$18)^(B70-1)))*$G$6)+($G$15*(1+$G$18)^(B70-1)*$G$7)))*Input!$D$20*C70,"") -> 2118.678587 | P69: 2316.654829
B70: 26 | C70: 1 | D70: 238042.9646 | E70: 68390.01277 | F70: 127889.3239 | G70: 169652.9518 | H70: =IFERROR($H$29*D70*Input!$D$20,"") -> 7141.288937 | I70: =IFERROR($I$29*G70*Input!$D$20,"") -> 5937.853313 | J70: =IFERROR(IF(D70*Input!$D$20<=$J$5,$K$5*D70*Input!$D$20,IF(AND(D70*Input!$D$20>$J$5,D70*Input!$D$20<=$J$6),$K$6*(D70*Input!$D$20-$J$5),IF(D70*Input!$D$20>$J$6,$K$6*($J$6*Input!$D$20-$J$5)+$K$7*(D70*Input!$D$20-$J$6)))),"") -> 7080.65376 | K70: 8947.365649 | L70: 13791.19998 | M70: =IFERROR($G$5*D71*Input!$D$20*C71,"") -> 9241.720545 | N70: 9955.957712 | O70: =IFERROR(IF(B70="","",IF(D71<$G$15*(1+$G$18)^(B71-1),D71*$G$7,((D71-($G$15*(1+$G$18)^(B71-1)))*$G$6)+($G$15*(1+$G$18)^(B71-1)*$G$7)))*Input!$D$20*C71,"") -> 2193.724999 | P70: 2363.26485
B71: 27 | C71: 1 | D71: 246445.8812 | E71: 70783.66322 | F71: 132365.4502 | G71: 175662.218 | H71: =IFERROR($H$29*D71*Input!$D$20,"") -> 7393.376436 | I71: =IFERROR($I$29*G71*Input!$D$20,"") -> 6148.17763 | J71: =IFERROR(IF(D71*Input!$D$20<=$J$5,$K$5*D71*Input!$D$20,IF(AND(D71*Input!$D$20>$J$5,D71*Input!$D$20<=$J$6),$K$6*(D71*Input!$D$20-$J$5),IF(D71*Input!$D$20>$J$6,$K$6*($J$6*Input!$D$20-$J$5)+$K$7*(D71*Input!$D$20-$J$6)))),"") -> 7374.755842 | K71: 9126.796947 | L71: 14097.26775 | M71: =IFERROR($G$5*D72*Input!$D$20*C72,"") -> 9567.953281 | N71: 10155.07687 | O71: =IFERROR(IF(B71="","",IF(D72<$G$15*(1+$G$18)^(B72-1),D72*$G$7,((D72-($G$15*(1+$G$18)^(B72-1)))*$G$6)+($G$15*(1+$G$18)^(B72-1)*$G$7)))*Input!$D$20*C72,"") -> 2271.429546 | P71: 2410.812528
B72: 28 | C72: 1 | D72: 255145.4208 | E72: 73261.09143 | F72: 136998.241 | G72: 181884.3294 | H72: =IFERROR($H$29*D72*Input!$D$20,"") -> 7654.362624 | I72: =IFERROR($I$29*G72*Input!$D$20,"") -> 6365.951528 | J72: =IFERROR(IF(D72*Input!$D$20<=$J$5,$K$5*D72*Input!$D$20,IF(AND(D72*Input!$D$20>$J$5,D72*Input!$D$20<=$J$6),$K$6*(D72*Input!$D$20-$J$5),IF(D72*Input!$D$20>$J$6,$K$6*($J$6*Input!$D$20-$J$5)+$K$7*(D72*Input!$D$20-$J$6)))),"") -> 7679.239729 | K72: 9309.826407 | L72: 14409.02661 | M72: =IFERROR($G$5*D73*Input!$D$20*C73,"") -> 9905.702031 | N72: 10358.1784 | O72: =IFERROR(IF(B72="","",IF(D73<$G$15*(1+$G$18)^(B73-1),D73*$G$7,((D73-($G$15*(1+$G$18)^(B73-1)))*$G$6)+($G$15*(1+$G$18)^(B73-1)*$G$7)))*Input!$D$20*C73,"") -> 2351.886375 | P72: 2459.316723
B73: 29 | C73: 1 | D73: 264152.0542 | E73: 75825.22963 | F73: 141793.1794 | G73: 188326.8245 | H73: =IFERROR($H$29*D73*Input!$D$20,"") -> 7924.561625 | I73: =IFERROR($I$29*G73*Input!$D$20,"") -> 6591.438859 | J73: =IFERROR(IF(D73*Input!$D$20<=$J$5,$K$5*D73*Input!$D$20,IF(AND(D73*Input!$D$20>$J$5,D73*Input!$D$20<=$J$6),$K$6*(D73*Input!$D$20-$J$5),IF(D73*Input!$D$20>$J$6,$K$6*($J$6*Input!$D$20-$J$5)+$K$7*(D73*Input!$D$20-$J$6)))),"") -> 7994.471896 | K73: 9496.526181 | L73: 14726.59708 | M73: =IFERROR($G$5*D74*Input!$D$20*C74,"") -> 10255.37331 | N73: 10565.34197 | O73: =IFERROR(IF(B73="","",IF(D74<$G$15*(1+$G$18)^(B74-1),D74*$G$7,((D74-($G$15*(1+$G$18)^(B74-1)))*$G$6)+($G$15*(1+$G$18)^(B74-1)*$G$7)))*Input!$D$20*C74,"") -> 2435.192968 | P73: 2508.796676
B74: 30 | C74: 1 | D74: 273476.6217 | E74: 78479.11267 | F74: 146755.9407 | G74: 194997.509 | H74: =IFERROR($H$29*D74*Input!$D$20,"") -> 8204.29865 | I74: =IFERROR($I$29*G74*Input!$D$20,"") -> 6824.912815 | J74: =IFERROR(IF(D74*Input!$D$20<=$J$5,$K$5*D74*Input!$D$20,IF(AND(D74*Input!$D$20>$J$5,D74*Input!$D$20<=$J$6),$K$6*(D74*Input!$D$20-$J$5),IF(D74*Input!$D$20>$J$6,$K$6*($J$6*Input!$D$20-$J$5)+$K$7*(D74*Input!$D$20-$J$6)))),"") -> 8320.831759 | K74: 9686.969867 | L74: 15050.10197 | M74: =IFERROR($G$5*D75*Input!$D$20*C75,"") -> 10617.38799 | N74: 10776.64881 | O74: =IFERROR(IF(B74="","",IF(D75<$G$15*(1+$G$18)^(B75-1),D75*$G$7,((D75-($G$15*(1+$G$18)^(B75-1)))*$G$6)+($G$15*(1+$G$18)^(B75-1)*$G$7)))*Input!$D$20*C75,"") -> 2521.45026 | P74: 2559.272014
B75: 31 | C75: 1 | D75: 283130.3464 | E75: 81225.88161 | F75: 151892.3986 | G75: 201904.4648 | H75: =IFERROR($H$29*D75*Input!$D$20,"") -> 8493.910393 | I75: =IFERROR($I$29*G75*Input!$D$20,"") -> 7066.656269 | J75: =IFERROR(IF(D75*Input!$D$20<=$J$5,$K$5*D75*Input!$D$20,IF(AND(D75*Input!$D$20>$J$5,D75*Input!$D$20<=$J$6),$K$6*(D75*Input!$D$20-$J$5),IF(D75*Input!$D$20>$J$6,$K$6*($J$6*Input!$D$20-$J$5)+$K$7*(D75*Input!$D$20-$J$6)))),"") -> 8658.712125 | K75: 9881.232539 | L75: 15379.66649 | M75: =IFERROR($G$5*D76*Input!$D$20*C76,"") -> 10992.18179 | N75: 10992.18179 | O75: =IFERROR(IF(B75="","",IF(D76<$G$15*(1+$G$18)^(B76-1),D76*$G$7,((D76-($G$15*(1+$G$18)^(B76-1)))*$G$6)+($G$15*(1+$G$18)^(B76-1)*$G$7)))*Input!$D$20*C76,"") -> 2610.762758 | P75: 2610.762758
B76: 32 | C76: 1 | D76: 293124.8477 | E76: 84068.78747 | F76: 157208.6326 | G76: 209056.0602 | H76: =IFERROR($H$29*D76*Input!$D$20,"") -> 8793.74543 | I76: =IFERROR($I$29*G76*Input!$D$20,"") -> 7316.962107 | J76: =IFERROR(IF(D76*Input!$D$20<=$J$5,$K$5*D76*Input!$D$20,IF(AND(D76*Input!$D$20>$J$5,D76*Input!$D$20<=$J$6),$K$6*(D76*Input!$D$20-$J$5),IF(D76*Input!$D$20>$J$6,$K$6*($J$6*Input!$D$20-$J$5)+$K$7*(D76*Input!$D$20-$J$6)))),"") -> 9008.519668 | K76: 10079.39077 | L76: 15715.41823 | M76: =IFERROR($G$5*D77*Input!$D$20*C77,"") -> 11380.2058 | N76: 11212.02542 | O76: =IFERROR(IF(B76="","",IF(D77<$G$15*(1+$G$18)^(B77-1),D77*$G$7,((D77-($G$15*(1+$G$18)^(B77-1)))*$G$6)+($G$15*(1+$G$18)^(B77-1)*$G$7)))*Input!$D$20*C77,"") -> 2703.238672 | P76: 2663.289332
B77: 33 | C77: 1 | D77: 303472.1548 | E77: 87011.19503 | F77: 162710.9347 | G77: 216460.9597 | H77: =IFERROR($H$29*D77*Input!$D$20,"") -> 9104.164643 | I77: =IFERROR($I$29*G77*Input!$D$20,"") -> 7576.133591 | J77: =IFERROR(IF(D77*Input!$D$20<=$J$5,$K$5*D77*Input!$D$20,IF(AND(D77*Input!$D$20>$J$5,D77*Input!$D$20<=$J$6),$K$6*(D77*Input!$D$20-$J$5),IF(D77*Input!$D$20>$J$6,$K$6*($J$6*Input!$D$20-$J$5)+$K$7*(D77*Input!$D$20-$J$6)))),"") -> 9370.675417 | K77: =IFERROR(SUM(H77:I77)*(1+$G$20)^(-B77+0.5),"") -> 10281.52269 | L77: =IFERROR(SUM(H77:J77)*(1+$G$20)^(-B77+0.5),"") -> 16057.48728 | M77: =IFERROR($G$5*D78*Input!$D$20*C78,"") ->  | N77: =IFERROR(M77*(1+$G$20)^($AA$6-B77-2),"") ->  | O77: =IFERROR(IF(B77="","",IF(D78<$G$15*(1+$G$18)^(B78-1),D78*$G$7,((D78-($G$15*(1+$G$18)^(B78-1)))*$G$6)+($G$15*(1+$G$18)^(B78-1)*$G$7)))*Input!$D$20*C78,"") ->  | P77: =IFERROR(O77*(1+$G$20)^($AA$6-B77-2),"") -> 
D78: =IF(B78="","",$D$45*(($G$19+1)*($G$20+1))^(B78-1)) ->  | E78: =IF(B78="","",$E$45*(($G$18+1))^(B78-1)) ->  | H78: =IFERROR($H$29*D78*Input!$D$20,"") ->  | I78: =IFERROR($I$29*G78*Input!$D$20,"") ->  | J78: =IFERROR(IF(D78*Input!$D$20<=$J$5,$K$5*D78*Input!$D$20,IF(AND(D78*Input!$D$20>$J$5,D78*Input!$D$20<=$J$6),$K$6*(D78*Input!$D$20-$J$5),IF(D78*Input!$D$20>$J$6,$K$6*($J$6*Input!$D$20-$J$5)+$K$7*(D78*Input!$D$20-$J$6)))),"") ->  | M78: =IFERROR($G$5*D79*Input!$D$20*C79,"") ->  | O78: =IFERROR(IF(B78="","",IF(D79<$G$15*(1+$G$18)^(B79-1),D79*$G$7,((D79-($G$15*(1+$G$18)^(B79-1)))*$G$6)+($G$15*(1+$G$18)^(B79-1)*$G$7)))*Input!$D$20*C79,"") -> 
H79: =IFERROR($H$29*D79*Input!$D$20,"") ->  | I79: =IFERROR($I$29*G79*Input!$D$20,"") ->  | J79: =IFERROR(IF(D79*Input!$D$20<=$J$5,$K$5*D79*Input!$D$20,IF(AND(D79*Input!$D$20>$J$5,D79*Input!$D$20<=$J$6),$K$6*(D79*Input!$D$20-$J$5),IF(D79*Input!$D$20>$J$6,$K$6*($J$6*Input!$D$20-$J$5)+$K$7*(D79*Input!$D$20-$J$6)))),"") ->  | M79: =IFERROR($G$5*D80*Input!$D$20*C80,"") ->  | O79: =IFERROR(IF(B79="","",IF(D80<$G$15*(1+$G$18)^(B80-1),D80*$G$7,((D80-($G$15*(1+$G$18)^(B80-1)))*$G$6)+($G$15*(1+$G$18)^(B80-1)*$G$7)))*Input!$D$20*C80,"") -> 
H80: =IFERROR($H$29*D80*Input!$D$20,"") ->  | I80: =IFERROR($I$29*G80*Input!$D$20,"") ->  | J80: =IFERROR(IF(D80*Input!$D$20<=$J$5,$K$5*D80*Input!$D$20,IF(AND(D80*Input!$D$20>$J$5,D80*Input!$D$20<=$J$6),$K$6*(D80*Input!$D$20-$J$5),IF(D80*Input!$D$20>$J$6,$K$6*($J$6*Input!$D$20-$J$5)+$K$7*(D80*Input!$D$20-$J$6)))),"") ->  | M80: =IFERROR($G$5*D81*Input!$D$20*C81,"") ->  | O80: =IFERROR(IF(B80="","",IF(D81<$G$15*(1+$G$18)^(B81-1),D81*$G$7,((D81-($G$15*(1+$G$18)^(B81-1)))*$G$6)+($G$15*(1+$G$18)^(B81-1)*$G$7)))*Input!$D$20*C81,"") -> 
H81: =IFERROR($H$29*D81*Input!$D$20,"") ->  | I81: =IFERROR($I$29*G81*Input!$D$20,"") ->  | J81: =IFERROR(IF(D81*Input!$D$20<=$J$5,$K$5*D81*Input!$D$20,IF(AND(D81*Input!$D$20>$J$5,D81*Input!$D$20<=$J$6),$K$6*(D81*Input!$D$20-$J$5),IF(D81*Input!$D$20>$J$6,$K$6*($J$6*Input!$D$20-$J$5)+$K$7*(D81*Input!$D$20-$J$6)))),"") ->  | M81: =IFERROR($G$5*D82*Input!$D$20*C82,"") ->  | O81: =IFERROR(IF(B81="","",IF(D82<$G$15*(1+$G$18)^(B82-1),D82*$G$7,((D82-($G$15*(1+$G$18)^(B82-1)))*$G$6)+($G$15*(1+$G$18)^(B82-1)*$G$7)))*Input!$D$20*C82,"") -> 
H82: =IFERROR($H$29*D82*Input!$D$20,"") ->  | I82: =IFERROR($I$29*G82*Input!$D$20,"") ->  | J82: =IFERROR(IF(D82*Input!$D$20<=$J$5,$K$5*D82*Input!$D$20,IF(AND(D82*Input!$D$20>$J$5,D82*Input!$D$20<=$J$6),$K$6*(D82*Input!$D$20-$J$5),IF(D82*Input!$D$20>$J$6,$K$6*($J$6*Input!$D$20-$J$5)+$K$7*(D82*Input!$D$20-$J$6)))),"") ->  | M82: =IFERROR($G$5*D83*Input!$D$20*C83,"") ->  | O82: =IFERROR(IF(B82="","",IF(D83<$G$15*(1+$G$18)^(B83-1),D83*$G$7,((D83-($G$15*(1+$G$18)^(B83-1)))*$G$6)+($G$15*(1+$G$18)^(B83-1)*$G$7)))*Input!$D$20*C83,"") -> 
H83: =IFERROR($H$29*D83*Input!$D$20,"") ->  | I83: =IFERROR($I$29*G83*Input!$D$20,"") ->  | J83: =IFERROR(IF(D83*Input!$D$20<=$J$5,$K$5*D83*Input!$D$20,IF(AND(D83*Input!$D$20>$J$5,D83*Input!$D$20<=$J$6),$K$6*(D83*Input!$D$20-$J$5),IF(D83*Input!$D$20>$J$6,$K$6*($J$6*Input!$D$20-$J$5)+$K$7*(D83*Input!$D$20-$J$6)))),"") ->  | M83: =IFERROR($G$5*D84*Input!$D$20*C84,"") ->  | O83: =IFERROR(IF(B83="","",IF(D84<$G$15*(1+$G$18)^(B84-1),D84*$G$7,((D84-($G$15*(1+$G$18)^(B84-1)))*$G$6)+($G$15*(1+$G$18)^(B84-1)*$G$7)))*Input!$D$20*C84,"") -> 
H84: =IFERROR($H$29*D84*Input!$D$20,"") ->  | I84: =IFERROR($I$29*G84*Input!$D$20,"") ->  | J84: =IFERROR(IF(D84*Input!$D$20<=$J$5,$K$5*D84*Input!$D$20,IF(AND(D84*Input!$D$20>$J$5,D84*Input!$D$20<=$J$6),$K$6*(D84*Input!$D$20-$J$5),IF(D84*Input!$D$20>$J$6,$K$6*($J$6*Input!$D$20-$J$5)+$K$7*(D84*Input!$D$20-$J$6)))),"") ->  | M84: =IFERROR($G$5*D85*Input!$D$20*C85,"") ->  | O84: =IFERROR(IF(B84="","",IF(D85<$G$15*(1+$G$18)^(B85-1),D85*$G$7,((D85-($G$15*(1+$G$18)^(B85-1)))*$G$6)+($G$15*(1+$G$18)^(B85-1)*$G$7)))*Input!$D$20*C85,"") -> 
H85: =IFERROR($H$29*D85*Input!$D$20,"") ->  | I85: =IFERROR($I$29*G85*Input!$D$20,"") ->  | J85: =IFERROR(IF(D85*Input!$D$20<=$J$5,$K$5*D85*Input!$D$20,IF(AND(D85*Input!$D$20>$J$5,D85*Input!$D$20<=$J$6),$K$6*(D85*Input!$D$20-$J$5),IF(D85*Input!$D$20>$J$6,$K$6*($J$6*Input!$D$20-$J$5)+$K$7*(D85*Input!$D$20-$J$6)))),"") ->  | M85: =IFERROR($G$5*D86*Input!$D$20*C86,"") ->  | O85: =IFERROR(IF(B85="","",IF(D86<$G$15*(1+$G$18)^(B86-1),D86*$G$7,((D86-($G$15*(1+$G$18)^(B86-1)))*$G$6)+($G$15*(1+$G$18)^(B86-1)*$G$7)))*Input!$D$20*C86,"") -> 
H86: =IFERROR($H$29*D86*Input!$D$20,"") ->  | I86: =IFERROR($I$29*G86*Input!$D$20,"") ->  | J86: =IFERROR(IF(D86*Input!$D$20<=$J$5,$K$5*D86*Input!$D$20,IF(AND(D86*Input!$D$20>$J$5,D86*Input!$D$20<=$J$6),$K$6*(D86*Input!$D$20-$J$5),IF(D86*Input!$D$20>$J$6,$K$6*($J$6*Input!$D$20-$J$5)+$K$7*(D86*Input!$D$20-$J$6)))),"") ->  | M86: =IFERROR($G$5*D87*Input!$D$20*C87,"") ->  | O86: =IFERROR(IF(B86="","",IF(D87<$G$15*(1+$G$18)^(B87-1),D87*$G$7,((D87-($G$15*(1+$G$18)^(B87-1)))*$G$6)+($G$15*(1+$G$18)^(B87-1)*$G$7)))*Input!$D$20*C87,"") -> 
H87: =IFERROR($H$29*D87*Input!$D$20,"") ->  | I87: =IFERROR($I$29*G87*Input!$D$20,"") ->  | J87: =IFERROR(IF(D87*Input!$D$20<=$J$5,$K$5*D87*Input!$D$20,IF(AND(D87*Input!$D$20>$J$5,D87*Input!$D$20<=$J$6),$K$6*(D87*Input!$D$20-$J$5),IF(D87*Input!$D$20>$J$6,$K$6*($J$6*Input!$D$20-$J$5)+$K$7*(D87*Input!$D$20-$J$6)))),"") ->  | M87: =IFERROR($G$5*D88*Input!$D$20*C88,"") ->  | O87: =IFERROR(IF(B87="","",IF(D88<$G$15*(1+$G$18)^(B88-1),D88*$G$7,((D88-($G$15*(1+$G$18)^(B88-1)))*$G$6)+($G$15*(1+$G$18)^(B88-1)*$G$7)))*Input!$D$20*C88,"") -> 
H88: =IFERROR($H$29*D88*Input!$D$20,"") ->  | I88: =IFERROR($I$29*G88*Input!$D$20,"") ->  | J88: =IFERROR(IF(D88*Input!$D$20<=$J$5,$K$5*D88*Input!$D$20,IF(AND(D88*Input!$D$20>$J$5,D88*Input!$D$20<=$J$6),$K$6*(D88*Input!$D$20-$J$5),IF(D88*Input!$D$20>$J$6,$K$6*($J$6*Input!$D$20-$J$5)+$K$7*(D88*Input!$D$20-$J$6)))),"") ->  | M88: =IFERROR($G$5*D89*Input!$D$20*C89,"") ->  | O88: =IFERROR(IF(B88="","",IF(D89<$G$15*(1+$G$18)^(B89-1),D89*$G$7,((D89-($G$15*(1+$G$18)^(B89-1)))*$G$6)+($G$15*(1+$G$18)^(B89-1)*$G$7)))*Input!$D$20*C89,"") -> 
G89: =IFERROR(D89-E89,"") ->  | H89: =IFERROR($H$29*D89*Input!$D$20,"") ->  | I89: =IFERROR($I$29*G89*Input!$D$20,"") ->  | J89: =IFERROR(IF(D89*Input!$D$20<=$J$5,$K$5*D89*Input!$D$20,IF(AND(D89*Input!$D$20>$J$5,D89*Input!$D$20<=$J$6),$K$6*(D89*Input!$D$20-$J$5),IF(D89*Input!$D$20>$J$6,$K$6*($J$6*Input!$D$20-$J$5)+$K$7*(D89*Input!$D$20-$J$6)))),"") ->  | M89: =IFERROR($G$5*D90*Input!$D$20*C90,"") ->  | O89: =IFERROR(IF(B89="","",IF(D90<$G$15*(1+$G$18)^(B90-1),D90*$G$7,((D90-($G$15*(1+$G$18)^(B90-1)))*$G$6)+($G$15*(1+$G$18)^(B90-1)*$G$7)))*Input!$D$20*C90,"") -> 
H90: =IFERROR($H$29*D90*Input!$D$20,"") ->  | I90: =IFERROR($I$29*G90*Input!$D$20,"") ->  | J90: =IFERROR(IF(D90*Input!$D$20<=$J$5,$K$5*D90*Input!$D$20,IF(AND(D90*Input!$D$20>$J$5,D90*Input!$D$20<=$J$6),$K$6*(D90*Input!$D$20-$J$5),IF(D90*Input!$D$20>$J$6,$K$6*($J$6*Input!$D$20-$J$5)+$K$7*(D90*Input!$D$20-$J$6)))),"") ->  | M90: =IFERROR($G$5*D91*Input!$D$20*C91,"") ->  | O90: =IFERROR(IF(B90="","",IF(D91<$G$15*(1+$G$18)^(B91-1),D91*$G$7,((D91-($G$15*(1+$G$18)^(B91-1)))*$G$6)+($G$15*(1+$G$18)^(B91-1)*$G$7)))*Input!$D$20*C91,"") -> 
H91: =IFERROR($H$29*D91*Input!$D$20,"") ->  | I91: =IFERROR($I$29*G91*Input!$D$20,"") ->  | J91: =IFERROR(IF(D91*Input!$D$20<=$J$5,$K$5*D91*Input!$D$20,IF(AND(D91*Input!$D$20>$J$5,D91*Input!$D$20<=$J$6),$K$6*(D91*Input!$D$20-$J$5),IF(D91*Input!$D$20>$J$6,$K$6*($J$6*Input!$D$20-$J$5)+$K$7*(D91*Input!$D$20-$J$6)))),"") ->  | M91: =IFERROR($G$5*D92*Input!$D$20*C92,"") ->  | O91: =IFERROR(IF(B91="","",IF(D92<$G$15*(1+$G$18)^(B92-1),D92*$G$7,((D92-($G$15*(1+$G$18)^(B92-1)))*$G$6)+($G$15*(1+$G$18)^(B92-1)*$G$7)))*Input!$D$20*C92,"") -> 
H92: =IFERROR($H$29*D92*Input!$D$20,"") ->  | I92: =IFERROR($I$29*G92*Input!$D$20,"") ->  | J92: =IFERROR(IF(D92*Input!$D$20<=$J$5,$K$5*D92*Input!$D$20,IF(AND(D92*Input!$D$20>$J$5,D92*Input!$D$20<=$J$6),$K$6*(D92*Input!$D$20-$J$5),IF(D92*Input!$D$20>$J$6,$K$6*($J$6*Input!$D$20-$J$5)+$K$7*(D92*Input!$D$20-$J$6)))),"") ->  | M92: =IFERROR($G$5*D93*Input!$D$20*C93,"") ->  | O92: =IFERROR(IF(B92="","",IF(D93<$G$15*(1+$G$18)^(B93-1),D93*$G$7,((D93-($G$15*(1+$G$18)^(B93-1)))*$G$6)+($G$15*(1+$G$18)^(B93-1)*$G$7)))*Input!$D$20*C93,"") -> 
H93: =IFERROR($H$29*D93*Input!$D$20,"") ->  | I93: =IFERROR($I$29*G93*Input!$D$20,"") ->  | J93: =IFERROR(IF(D93*Input!$D$20<=$J$5,$K$5*D93*Input!$D$20,IF(AND(D93*Input!$D$20>$J$5,D93*Input!$D$20<=$J$6),$K$6*(D93*Input!$D$20-$J$5),IF(D93*Input!$D$20>$J$6,$K$6*($J$6*Input!$D$20-$J$5)+$K$7*(D93*Input!$D$20-$J$6)))),"") ->  | M93: =IFERROR($G$5*D94*Input!$D$20*C94,"") ->  | O93: =IFERROR(IF(B93="","",IF(D94<$G$15*(1+$G$18)^(B94-1),D94*$G$7,((D94-($G$15*(1+$G$18)^(B94-1)))*$G$6)+($G$15*(1+$G$18)^(B94-1)*$G$7)))*Input!$D$20*C94,"") -> 
H94: =IFERROR($H$29*D94*Input!$D$20,"") ->  | I94: =IFERROR($I$29*G94*Input!$D$20,"") ->  | J94: =IFERROR(IF(D94*Input!$D$20<=$J$5,$K$5*D94*Input!$D$20,IF(AND(D94*Input!$D$20>$J$5,D94*Input!$D$20<=$J$6),$K$6*(D94*Input!$D$20-$J$5),IF(D94*Input!$D$20>$J$6,$K$6*($J$6*Input!$D$20-$J$5)+$K$7*(D94*Input!$D$20-$J$6)))),"") ->  | M94: =IFERROR($G$5*D95*Input!$D$20*C95,"") ->  | O94: =IFERROR(IF(B94="","",IF(D95<$G$15*(1+$G$18)^(B95-1),D95*$G$7,((D95-($G$15*(1+$G$18)^(B95-1)))*$G$6)+($G$15*(1+$G$18)^(B95-1)*$G$7)))*Input!$D$20*C95,"") -> 
H95: =IFERROR($H$29*D95*Input!$D$20,"") ->  | I95: =IFERROR($I$29*G95*Input!$D$20,"") ->  | J95: =IFERROR(IF(D95*Input!$D$20<=$J$5,$K$5*D95*Input!$D$20,IF(AND(D95*Input!$D$20>$J$5,D95*Input!$D$20<=$J$6),$K$6*(D95*Input!$D$20-$J$5),IF(D95*Input!$D$20>$J$6,$K$6*($J$6*Input!$D$20-$J$5)+$K$7*(D95*Input!$D$20-$J$6)))),"") ->  | M95: =IFERROR($G$5*D96*Input!$D$20*C96,"") ->  | O95: =IFERROR(IF(B95="","",IF(D96<$G$15*(1+$G$18)^(B96-1),D96*$G$7,((D96-($G$15*(1+$G$18)^(B96-1)))*$G$6)+($G$15*(1+$G$18)^(B96-1)*$G$7)))*Input!$D$20*C96,"") -> 
B96: =IF(B95="","",IF($AA$6>=B95+1,B95+1,"")) ->  | H96: =IFERROR($H$29*D96*Input!$D$20,"") ->  | I96: =IFERROR($I$29*G96*Input!$D$20,"") ->  | J96: =IFERROR(IF(D96*Input!$D$20<=$J$5,$K$5*D96*Input!$D$20,IF(AND(D96*Input!$D$20>$J$5,D96*Input!$D$20<=$J$6),$K$6*(D96*Input!$D$20-$J$5),IF(D96*Input!$D$20>$J$6,$K$6*($J$6*Input!$D$20-$J$5)+$K$7*(D96*Input!$D$20-$J$6)))),"") ->  | M96: =IFERROR($G$5*D97*Input!$D$20*C97,"") -> 0 | O96: =IFERROR(IF(B96="","",IF(D97<$G$15*(1+$G$18)^(B97-1),D97*$G$7,((D97-($G$15*(1+$G$18)^(B97-1)))*$G$6)+($G$15*(1+$G$18)^(B97-1)*$G$7)))*Input!$D$20*C97,"") -> 

Sheet Version Control (hidden)
B2: Resource Toolkit | C2: Single Scheme Administration Project (Phase 1) Member Resources
B4: Resource Name | C4: Single Public Service Scheme Member's Estimator Tool (for all Grades)
B5: Description | C5: This Estimator Tool is designed to give a broad indication of the normal retirement benefits for a member of the Single Scheme at normal retirement age
B6: Version | C6: V1 (22/01/2021)
B7: Version Comments | C7: V1 test launch //2020 Formula for NRA was ''=IF(Input!$D$8="Uniform",Input!$D$12,IF(Input!D24<1949,65,IF(AND(Input!D24>=1949,Input!D24<1955),66,IF(AND(Input!D24>=1955,Input!D24<1961),67,68)))) NOW IT IS ''=IF(Input!$D$8="Uniform",Input!$D$12,66)
C8: Updated for 2020
C9: CPI Rate of ???? Applied
